[Event "Belt and Road Women 2024"]
[Site "Yuecheng Shaoxing"]
[Date "2024.08.01"]
[Round "8.6"]
[White "Guo, Qi"]
[Black "Velpula Sarayu"]
[Result "1/2-1/2"]
[ECO "E94"]
[WhiteElo "2362"]
[BlackElo "2384"]
[Annotator "RC"]
[PlyCount "127"]
[EventDate "2024.08.01"]
[EventType "swiss"]
[EventCountry "CHN"]
[SourceTitle "playchess.com"]
[Source "ChessBase"]
[SourceQuality "1"]
[TimeControl "5400+30"]

1. d4 {[%emt 0:00:02]} Nf6 {[%emt 0:00:24]} 2. c4 {[%emt 0:00:09]} g6 {[%emt 0:00:31]} 3. Nc3 {[%emt 0:00:04]} Bg7 {[%emt 0:00:31]} 4. e4 {[%emt 0:00:05]} d6 {[%emt 0:00:28]} 5. Nf3 {[%emt 0:00:07]} O-O {[%emt 0:00:31]} 6. Be2 {[%emt 0:00:07]} e5 {[%emt 0:00:29]} 7. O-O {[%emt 0:00:06]} Bg4 {[%emt 0:00:30]} 8. Be3 {[%emt 0:01:37]} Bxf3 {[%emt 0:00:31]} 9. Bxf3 {[%emt 0:00:07]} exd4 {[%emt 0:00:32]} 10. Bxd4 {[%emt 0:02:01]} Nc6 {[%emt 0:00:27]} 11. Be3 {[%emt 0:00:07]} Re8 {[%emt 0:00:30]} 12. Re1 {[%emt 0:03:17]} Nd7 {[%emt 0:01:23]} 13. Qd2 {[%emt 0:15:38]} Bxc3 {[%emt 0:01:07]} 14. Qxc3 {[%emt 0:00:30]} Qf6 {[%emt 0:00:36]} 15. Bd2 {[%emt 0:04:23]} Qd4 {[%emt 0:13:44]} 16. Re3 {[%emt 0:08:06]} a5 {[%emt 0:05:43]} 17. Rd1 {[%emt 0:08:59]} Qxc3 {[%emt 0:06:48]} 18. Bxc3 {[%emt 0:00:38]} Nc5 {[%emt 0:00:11]} 19. b3 {[%emt 0:01:31]} Re7 {[%emt 0:14:22]} 20. g3 {[%emt 0:10:57]} Rae8 {[%emt 0:03:57]} 21. Rde1 {[%emt 0:00:06]} Ne5 {[%emt 0:13:48]} 22. Bg2 {[%emt 0:02:56]} a4 {[%emt 0:07:20]} 23. f4 {[%emt 0:04:11]} Ng4 {[%emt 0:01:30]} 24. R3e2 {[%emt 0:00:01]} axb3 {[%emt 0:01:33]} 25. axb3 {[%emt 0:00:01]} Nxb3 {[%emt 0:00:42]} 26. h3 {[%emt 0:00:04]} Nh6 {[%emt 0:00:06]} 27. g4 {[%emt 0:00:12]} f5 {[%emt 0:01:47]} 28. g5 {[%emt 0:05:26]} Nf7 {[%emt 0:00:12]} 29. Re3 {[%emt 0:02:40]} Nc5 {[%emt 0:01:41]} 30. Bf6 {[%emt 0:00:10]} Re6 {[%emt 0:00:27]} 31. e5 {[%emt 0:00:07]} c6 {[%emt 0:00:15]} 32. Bd5 {[%emt 0:01:07]} cxd5 {[%emt 0:08:20]} 33. cxd5 {[%emt 0:00:09]} dxe5 {[%emt 0:03:04]} 34. dxe6 {[%emt 0:01:02]} Rxe6 {[%emt 0:00:07]} 35. Bxe5 {[%emt 0:02:06]} Nxe5 {[%emt 0:02:14]} 36. Rxe5 {[%emt 0:07:51]} Kf7 {[%emt 0:04:19]} 37. Kh2 {[%emt 0:06:53]} Rxe5 {[%emt 0:00:29]} 38. Rxe5 {[%emt 0:00:03]} Nd3 {[%emt 0:00:19]} 39. Rb5 {[%emt 0:00:01]} Nxf4 {[%emt 0:00:05]} 40. Rxb7+ {[%emt 0:00:04]} Kg8 {[%emt 0:00:05]} 41. Kg3 {[%emt 0:00:05]} Nh5+ {[%emt 0:00:20]} 42. Kf3 {[%emt 0:00:04]} Kh8 {[%emt 0:00:26]} 43. h4 {[%emt 0:00:13]} Kg8 {[%emt 0:00:30]} 44. Ke3 {[%emt 0:00:04]} Kh8 {[%emt 0:00:20]} 45. Kd4 {[%emt 0:00:04]} Kg8 {[%emt 0:00:16]} 46. Ke5 {[%emt 0:00:05]} Kh8 {[%emt 0:00:19]} 47. Ke6 {[%emt 0:02:58]} Kg8 {[%emt 0:00:09]} 48. Ra7 {[%emt 0:00:15]} Ng7+ {[%emt 0:00:51]} 49. Ke7 {[%emt 0:00:26]} Nh5 {[%emt 0:00:10]} 50. Ra6 {[%emt 0:01:42]} Kg7 {[%emt 0:00:24]} 51. Rf6 {[%emt 0:00:10]} Nf4 {[%emt 0:02:59]} 52. Ke8 {[%emt 0:00:27]} Kg8 {[%emt 0:01:43]} 53. Rf7 {[%emt 0:00:27]} Nh5 {[%emt 0:00:54]} 54. Ke7 {[%emt 0:02:50]} Nf4 {[%emt 0:00:03]} 55. Rf6 {[%emt 0:01:10]} Nh5 {[%emt 0:00:14]} 56. Ra6 {[%emt 0:00:32]} Kg7 {[%emt 0:00:17]} 57. Ra7 {[%emt 0:00:11]} Kg8 {[%emt 0:00:15]} 58. Ke6 {[%emt 0:01:37]} Ng7+ {[%emt 0:00:26]} 59. Kf6 {[%emt 0:05:51]} Nh5+ {[%emt 0:00:04]} 60. Ke5 {[%emt 0:00:10]} Kh8 {[%emt 0:00:33]} 61. Ke6 {[%emt 0:01:18]} Kg8 {[%emt 0:00:09]} 62. Ke5 {[%emt 0:00:48]} Kh8 {[%emt 0:00:05]} 63. Ke6 {[%emt 0:00:03]} Kg8 {[%emt 0:00:36]} 64. Ke5 {[%emt 0:00:04]} 1/2-1/2

[Event "Belt and Road Women 2024"]
[Site "Yuecheng Shaoxing"]
[Date "2024.08.01"]
[Round "8.7"]
[White "Zhang, Lanlin"]
[Black "Yan, Tianqi"]
[Result "0-1"]
[ECO "C47"]
[WhiteElo "2161"]
[BlackElo "2306"]
[Annotator "RC"]
[PlyCount "112"]
[EventDate "2024.08.01"]
[EventType "swiss"]
[EventCountry "CHN"]
[SourceTitle "playchess.com"]
[Source "ChessBase"]
[SourceQuality "1"]
[TimeControl "5400+30"]

1. e4 {[%emt 0:01:46]} e5 {[%emt 0:00:17]} 2. Nf3 {[%emt 0:00:08]} Nc6 {[%emt 0:00:08]} 3. d4 {[%emt 0:03:05]} exd4 {[%emt 0:00:19]} 4. Nxd4 {[%emt 0:00:03]} Nf6 {[%emt 0:00:23]} 5. Nc3 {[%emt 0:00:04]} Bb4 {[%emt 0:00:38]} 6. Nxc6 {[%emt 0:00:05]} bxc6 {[%emt 0:00:14]} 7. Bd3 {[%emt 0:00:03]} O-O {[%emt 0:01:07]} 8. O-O {[%emt 0:01:44]} d5 {[%emt 0:00:17]} 9. exd5 {[%emt 0:00:04]} cxd5 {[%emt 0:00:28]} 10. Qf3 {[%emt 0:00:17]} c6 {[%emt 0:02:18]} 11. h3 {[%emt 0:00:04]} Re8 {[%emt 0:03:32]} 12. Bf4 {[%emt 0:00:16]} Bd6 {[%emt 0:02:41]} 13. Rfe1 {[%emt 0:00:44]} Be6 {[%emt 0:03:16]} 14. Rad1 {[%emt 0:02:27]} Bxf4 {[%emt 0:06:18]} 15. Qxf4 {[%emt 0:00:05]} Rb8 {[%emt 0:02:02]} 16. b3 {[%emt 0:10:48]} Qa5 {[%emt 0:03:43]} 17. Na4 {[%emt 0:06:05]} c5 {[%emt 0:14:22]} 18. c4 {[%emt 0:29:46]} Rb4 {[%emt 0:09:57]} 19. Re5 {[%emt 0:02:19]} dxc4 {[%emt 0:21:22]} 20. Rxc5 {[%emt 0:09:40]} cxb3 {[%emt 0:00:29]} 21. Rxa5 {[%emt 0:02:15]} Rxf4 {[%emt 0:00:09]} 22. axb3 {[%emt 0:00:02]} Bxb3 {[%emt 0:00:28]} 23. Ra1 {[%emt 0:00:04]} Rxa4 {[%emt 0:01:24]} 24. R1xa4 {[%emt 0:00:21]} Bxa4 {[%emt 0:00:08]} 25. Rxa4 {[%emt 0:00:03]} Re7 {[%emt 0:00:24]} 26. g4 {[%emt 0:01:58]} h6 {[%emt 0:01:58]} 27. Kg2 {[%emt 0:01:28]} g5 {[%emt 0:00:32]} 28. Ra5 {[%emt 0:01:32]} Kg7 {[%emt 0:00:30]} 29. Bf5 {[%emt 0:00:40]} Rc7 {[%emt 0:00:33]} 30. Kh2 {[%emt 0:03:10]} Ng8 {[%emt 0:00:39]} 31. Ra6 {[%emt 0:02:06]} Ne7 {[%emt 0:00:17]} 32. Be4 {[%emt 0:00:06]} Nc8 {[%emt 0:00:27]} 33. h4 {[%emt 0:02:05]} gxh4 {[%emt 0:03:59]} 34. Kh3 {[%emt 0:01:14]} Nb6 {[%emt 0:00:10]} 35. Kxh4 {[%emt 0:00:28]} Rc4 {[%emt 0:02:08]} 36. Bd3 {[%emt 0:07:39]} Ra4 {[%emt 0:01:23]} 37. Kh5 {[%emt 0:00:49]} Rxa6 {[%emt 0:01:35]} 38. Bxa6 {[%emt 0:00:03]} Nd7 {[%emt 0:00:38]} 39. f3 {[%emt 0:07:53]} Nc5 {[%emt 0:03:39]} 40. Bc4 {[%emt 0:00:06]} Ne6 {[%emt 0:04:17]} 41. Ba6 {[%emt 0:02:07]} Nd4 {[%emt 0:04:12]} 42. f4 {[%emt 0:02:34]} Ne6 {[%emt 0:00:10]} 43. f5 {[%emt 0:00:03]} Nc5 {[%emt 0:00:15]} 44. Bc4 {[%emt 0:00:50]} f6 {[%emt 0:00:09]} 45. Kh4 {[%emt 0:00:04]} a5 {[%emt 0:01:13]} 46. Kg3 {[%emt 0:01:55]} a4 {[%emt 0:02:04]} 47. Kf4 {[%emt 0:00:41]} a3 {[%emt 0:00:23]} 48. Ke3 {[%emt 0:00:34]} Na6 {[%emt 0:00:22]} 49. Kd4 {[%emt 0:02:05]} Nb4 {[%emt 0:00:08]} 50. Kc3 {[%emt 0:00:04]} a2 {[%emt 0:00:09]} 51. Kb2 {[%emt 0:00:52]} Kf8 {[%emt 0:00:14]} 52. Bxa2 {[%emt 0:00:32]} Nxa2 {[%emt 0:01:00]} 53. Kxa2 {[%emt 0:00:03]} Ke7 {[%emt 0:00:15]} 54. Kb3 {[%emt 0:00:44]} Kd6 {[%emt 0:00:05]} 55. Kc4 {[%emt 0:00:14]} Ke5 {[%emt 0:00:05]} 56. Kd3 {[%emt 0:00:59]} Kf4 {[%emt 0:00:06]} 0-1

[Event "Belt and Road Women 2024"]
[Site "Yuecheng Shaoxing"]
[Date "2024.08.01"]
[Round "8.8"]
[White "Beydullayeva, Govhar"]
[Black "Zhai, Mo"]
[Result "0-1"]
[ECO "E11"]
[WhiteElo "2417"]
[BlackElo "2348"]
[Annotator "RC"]
[PlyCount "112"]
[EventDate "2024.08.01"]
[EventType "swiss"]
[EventCountry "CHN"]
[SourceTitle "playchess.com"]
[Source "ChessBase"]
[SourceQuality "1"]
[TimeControl "5400+30"]

1. d4 {[%emt 0:00:03]} Nf6 {[%emt 0:00:12]} 2. c4 {[%emt 0:00:04]} e6 {[%emt 0:00:07]} 3. Nf3 {[%emt 0:00:04]} Bb4+ {[%emt 0:00:24]} 4. Nbd2 {[%emt 0:00:07]} b6 {[%emt 0:00:19]} 5. a3 {[%emt 0:00:35]} Bxd2+ {[%emt 0:00:14]} 6. Qxd2 {[%emt 0:00:04]} Bb7 {[%emt 0:00:06]} 7. g3 {[%emt 0:07:14]} d5 {[%emt 0:00:50]} 8. cxd5 {[%emt 0:00:23]} Qxd5 {[%emt 0:04:04]} 9. Bg2 {[%emt 0:01:57]} Nc6 {[%emt 0:02:52]} 10. O-O {[%emt 0:03:32]} O-O-O {[%emt 0:02:03]} 11. e3 {[%emt 0:03:33]} Na5 {[%emt 0:22:06]} 12. Ne1 {[%emt 0:20:18]} Qb5 {[%emt 0:18:13]} 13. Qc3 {[%emt 0:08:08]} Bxg2 {[%emt 0:02:36]} 14. Nxg2 {[%emt 0:00:29]} e5 {[%emt 0:06:28]} 15. b4 {[%emt 0:05:47]} exd4 {[%emt 0:07:46]} 16. exd4 {[%emt 0:00:06]} Qc4 {[%emt 0:05:22]} 17. Qf3 {[%emt 0:09:52]} Nb3 {[%emt 0:00:34]} 18. Ne3 {[%emt 0:03:40]} Qe6 {[%emt 0:06:04]} 19. Rb1 {[%emt 0:09:54]} Nxd4 {[%emt 0:00:24]} 20. Qa8+ {[%emt 0:00:25]} Kd7 {[%emt 0:00:04]} 21. Qg2 {[%emt 0:00:14]} Qe4 {[%emt 0:03:47]} 22. Qxe4 {[%emt 0:06:23]} Nxe4 {[%emt 0:00:01]} 23. Bb2 {[%emt 0:02:30]} Kc8 {[%emt 0:01:14]} 24. Bxd4 {[%emt 0:04:46]} Rxd4 {[%emt 0:00:29]} 25. Nf5 {[%emt 0:01:42]} Rd3 {[%emt 0:05:24]} 26. Rfc1 {[%emt 0:02:24]} g6 {[%emt 0:01:24]} 27. Ne3 {[%emt 0:02:22]} Re8 {[%emt 0:01:26]} 28. Rb2 {[%emt 0:00:31]} Re7 {[%emt 0:01:28]} 29. Re2 {[%emt 0:03:10]} Nd6 {[%emt 0:02:42]} 30. Rec2 {[%emt 0:01:22]} Ne4 {[%emt 0:02:36]} 31. Nc4 {[%emt 0:00:51]} Ng5 {[%emt 0:01:45]} 32. Kg2 {[%emt 0:01:17]} f5 {[%emt 0:00:50]} 33. f4 {[%emt 0:00:38]} Nf7 {[%emt 0:01:39]} 34. a4 {[%emt 0:00:49]} Kb7 {[%emt 0:00:09]} 35. b5 {[%emt 0:00:32]} a6 {[%emt 0:00:34]} 36. Rb2 {[%emt 0:01:19]} axb5 {[%emt 0:00:21]} 37. axb5 {[%emt 0:00:30]} h6 {[%emt 0:00:48]} 38. Ra1 {[%emt 0:00:21]} Rc3 {[%emt 0:00:34]} 39. Rba2 {[%emt 0:00:25]} Kc8 {[%emt 0:01:03]} 40. Ra8+ {[%emt 0:01:25]} Kd7 {[%emt 0:00:02]} 41. Rd1+ {[%emt 0:00:35]} Ke6 {[%emt 0:00:11]} 42. Rg8 {[%emt 0:00:36]} Kf6 {[%emt 0:00:21]} 43. Ne5 {[%emt 0:00:30]} Nxe5 {[%emt 0:00:20]} 44. fxe5+ {[%emt 0:00:02]} Rxe5 {[%emt 0:00:26]} 45. Rf8+ {[%emt 0:00:19]} Kg5 {[%emt 0:01:32]} 46. h4+ {[%emt 0:01:08]} Kh5 {[%emt 0:00:08]} 47. Kh3 {[%emt 0:00:32]} Ree3 {[%emt 0:01:06]} 48. Rg1 {[%emt 0:00:03]} Re4 {[%emt 0:00:23]} 49. Kh2 {[%emt 0:00:08]} Kg4 {[%emt 0:00:34]} 50. Rf6 {[%emt 0:00:10]} Kh5 {[%emt 0:00:44]} 51. Rf7 {[%emt 0:01:22]} Re2+ {[%emt 0:00:29]} 52. Kh3 {[%emt 0:00:06]} Rcc2 {[%emt 0:00:14]} 53. Rh1 {[%emt 0:00:22]} Rf2 {[%emt 0:00:09]} 54. Rh7 {[%emt 0:00:12]} Rc3 {[%emt 0:00:56]} 55. Rd1 {[%emt 0:00:56]} Rff3 {[%emt 0:00:09]} 56. Rg1 {[%emt 0:00:05]} f4 {[%emt 0:00:12]} 0-1

[Event "Belt and Road Women 2024"]
[Site "Yuecheng Shaoxing"]
[Date "2024.08.01"]
[Round "8.9"]
[White "Chen, Yining"]
[Black "Pham, Le Thao Nguyen"]
[Result "0-1"]
[ECO "E11"]
[WhiteElo "2300"]
[BlackElo "2395"]
[Annotator "RC"]
[PlyCount "146"]
[EventDate "2024.08.01"]
[EventType "swiss"]
[EventCountry "CHN"]
[SourceTitle "playchess.com"]
[Source "ChessBase"]
[SourceQuality "1"]
[TimeControl "5400+30"]

1. d4 {[%emt 0:00:04]} Nf6 {[%emt 0:00:17]} 2. c4 {[%emt 0:00:13]} e6 {[%emt 0:00:40]} 3. Nf3 {[%emt 0:00:18]} Bb4+ {[%emt 0:00:43]} 4. Bd2 {[%emt 0:01:09]} Qe7 {[%emt 0:01:02]} 5. e3 {[%emt 0:00:30]} b6 {[%emt 0:01:19]} 6. Bd3 {[%emt 0:00:52]} Bb7 {[%emt 0:00:32]} 7. a3 {[%emt 0:10:10]} Bxd2+ {[%emt 0:02:13]} 8. Nbxd2 {[%emt 0:00:49]} d6 {[%emt 0:01:20]} 9. Qc2 {[%emt 0:01:01]} Nbd7 {[%emt 0:01:16]} 10. O-O {[%emt 0:03:03]} O-O {[%emt 0:01:49]} 11. Ng5 {[%emt 0:07:30]} h6 {[%emt 0:07:55]} 12. Nh7 {[%emt 0:02:06]} Rfe8 {[%emt 0:02:27]} 13. Nxf6+ {[%emt 0:00:08]} Nxf6 {[%emt 0:00:23]} 14. f3 {[%emt 0:00:44]} c5 {[%emt 0:05:11]} 15. Rfe1 {[%emt 0:07:40]} Rac8 {[%emt 0:02:39]} 16. b4 {[%emt 0:14:52]} Rc7 {[%emt 0:06:04]} 17. Rac1 {[%emt 0:02:32]} e5 {[%emt 0:10:34]} 18. bxc5 {[%emt 0:03:29]} bxc5 {[%emt 0:01:21]} 19. d5 {[%emt 0:01:23]} g6 {[%emt 0:00:55]} 20. Rb1 {[%emt 0:01:21]} h5 {[%emt 0:01:57]} 21. Rb3 {[%emt 0:03:05]} h4 {[%emt 0:00:44]} 22. Reb1 {[%emt 0:02:17]} Kg7 {[%emt 0:01:39]} 23. Qb2 {[%emt 0:03:11]} Bc8 {[%emt 0:04:54]} 24. Bf1 {[%emt 0:02:08]} Nh5 {[%emt 0:05:10]} 25. Kf2 {[%emt 0:05:22]} g5 {[%emt 0:03:47]} 26. Rb8 {[%emt 0:05:04]} Rh8 {[%emt 0:07:23]} 27. Bd3 {[%emt 0:02:15]} Rh6 {[%emt 0:03:26]} 28. Qc2 {[%emt 0:01:45]} g4 {[%emt 0:06:46]} 29. Bf5 {[%emt 0:04:51]} g3+ {[%emt 0:01:32]} 30. hxg3 {[%emt 0:00:48]} Bxf5 {[%emt 0:00:35]} 31. Qxf5 {[%emt 0:00:08]} Nxg3 {[%emt 0:00:13]} 32. Qh3 {[%emt 0:03:09]} Rg6 {[%emt 0:07:24]} 33. Nf1 {[%emt 0:04:42]} Qg5 {[%emt 0:02:07]} 34. Nxg3 {[%emt 0:02:26]} hxg3+ {[%emt 0:01:41]} 35. Ke2 {[%emt 0:00:01]} Rh6 {[%emt 0:00:31]} 36. Qg4 {[%emt 0:00:02]} Qxg4 {[%emt 0:00:18]} 37. fxg4 {[%emt 0:00:02]} e4 {[%emt 0:00:13]} 38. Re8 {[%emt 0:03:28]} Rf6 {[%emt 0:03:43]} 39. Rxe4 {[%emt 0:01:57]} Rf2+ {[%emt 0:00:05]} 40. Kd3 {[%emt 0:00:02]} Rxg2 {[%emt 0:00:15]} 41. Rf4 {[%emt 0:02:57]} Ra2 {[%emt 0:00:17]} 42. Rg1 {[%emt 0:00:28]} g2 {[%emt 0:00:16]} 43. Rf3 {[%emt 0:01:08]} Rb7 {[%emt 0:00:39]} 44. Rg3 {[%emt 0:00:38]} Rbb2 {[%emt 0:00:20]} 45. Ke4 {[%emt 0:00:17]} a5 {[%emt 0:01:05]} 46. Kf4 {[%emt 0:00:45]} Rf2+ {[%emt 0:01:06]} 47. Rf3 {[%emt 0:00:15]} Rfc2 {[%emt 0:00:15]} 48. Kg3 {[%emt 0:00:27]} Rxc4 {[%emt 0:00:34]} 49. g5 {[%emt 0:00:40]} Rcc2 {[%emt 0:02:01]} 50. Rf6 {[%emt 0:00:34]} Rxa3 {[%emt 0:00:17]} 51. Rxd6 {[%emt 0:00:15]} Rxe3+ {[%emt 0:00:17]} 52. Kh2 {[%emt 0:00:06]} Ree2 {[%emt 0:00:38]} 53. Ra6 {[%emt 0:00:39]} Re5 {[%emt 0:01:20]} 54. d6 {[%emt 0:00:32]} Rxg5 {[%emt 0:00:22]} 55. Rxa5 {[%emt 0:00:17]} Rd2 {[%emt 0:00:30]} 56. Ra6 {[%emt 0:00:27]} f6 {[%emt 0:03:59]} 57. Ra7+ {[%emt 0:01:15]} Kg6 {[%emt 0:00:00]} 58. d7 {[%emt 0:00:27]} f5 {[%emt 0:00:00]} 59. Ra6+ {[%emt 0:00:38]} Kh5 {[%emt 0:00:00]} 60. Ra7 {[%emt 0:00:30]} f4 {[%emt 0:00:10]} 61. Ra8 {[%emt 0:00:30]} Rxd7 {[%emt 0:01:08]} 62. Rf8 {[%emt 0:00:28]} Rd4 {[%emt 0:01:48]} 63. Rxg2 {[%emt 0:00:05]} Rxg2+ {[%emt 0:00:07]} 64. Kxg2 {[%emt 0:00:02]} Kg4 {[%emt 0:00:11]} 65. Rg8+ {[%emt 0:00:04]} Kf5 {[%emt 0:00:09]} 66. Kf3 {[%emt 0:01:06]} Rd3+ {[%emt 0:00:14]} 67. Ke2 {[%emt 0:00:04]} Re3+ {[%emt 0:00:26]} 68. Kf2 {[%emt 0:00:35]} Rc3 {[%emt 0:00:26]} 69. Rf8+ {[%emt 0:00:12]} Ke4 {[%emt 0:00:06]} 70. Re8+ {[%emt 0:00:03]} Kd4 {[%emt 0:00:10]} 71. Rf8 {[%emt 0:00:08]} f3 {[%emt 0:00:50]} 72. Rf4+ {[%emt 0:00:25]} Kd5 {[%emt 0:00:10]} 73. Rh4 {[%emt 0:00:47]} Rd3 {[%emt 0:00:38]} 0-1

[Event "Belt and Road Women 2024"]
[Site "Yuecheng Shaoxing"]
[Date "2024.08.01"]
[Round "8.10"]
[White "Ni, Shiqun"]
[Black "Ha, Yihan"]
[Result "1-0"]
[ECO "B12"]
[WhiteElo "2352"]
[BlackElo "2166"]
[Annotator "RC"]
[PlyCount "79"]
[EventDate "2024.08.01"]
[EventType "swiss"]
[EventCountry "CHN"]
[SourceTitle "playchess.com"]
[Source "ChessBase"]
[SourceQuality "1"]
[TimeControl "5400+30"]

1. e4 {[%emt 0:00:36]} c6 {[%emt 0:00:05]} 2. d4 {[%emt 0:00:32]} d5 {[%emt 0:00:06]} 3. e5 {[%emt 0:00:04]} c5 {[%emt 0:00:19]} 4. Nf3 {[%emt 0:00:07]} cxd4 {[%emt 0:00:38]} 5. Qxd4 {[%emt 0:00:23]} Nc6 {[%emt 0:02:45]} 6. Qf4 {[%emt 0:00:04]} e6 {[%emt 0:02:06]} 7. Nc3 {[%emt 0:00:13]} a6 {[%emt 0:05:07]} 8. Bd3 {[%emt 0:04:44]} Nb4 {[%emt 0:03:42]} 9. O-O {[%emt 0:00:27]} Nxd3 {[%emt 0:00:28]} 10. cxd3 {[%emt 0:00:01]} h6 {[%emt 0:04:59]} 11. h4 {[%emt 0:03:18]} Ne7 {[%emt 0:00:39]} 12. Ne2 {[%emt 0:07:53]} Nf5 {[%emt 0:03:07]} 13. Ng3 {[%emt 0:12:39]} Be7 {[%emt 0:05:32]} 14. h5 {[%emt 0:04:42]} O-O {[%emt 0:03:17]} 15. Nxf5 {[%emt 0:00:59]} exf5 {[%emt 0:00:07]} 16. Nd4 {[%emt 0:03:39]} Bg5 {[%emt 0:01:22]} 17. Qf3 {[%emt 0:01:47]} Re8 {[%emt 0:05:13]} 18. Re1 {[%emt 0:01:46]} Bxc1 {[%emt 0:06:06]} 19. Raxc1 {[%emt 0:00:11]} Qb6 {[%emt 0:01:35]} 20. Nxf5 {[%emt 0:03:58]} Bxf5 {[%emt 0:00:19]} 21. Qxf5 {[%emt 0:00:01]} Qxb2 {[%emt 0:01:14]} 22. Rc7 {[%emt 0:11:26]} Rf8 {[%emt 0:00:06]} 23. Rec1 {[%emt 0:00:35]} Rae8 {[%emt 0:02:12]} 24. f4 {[%emt 0:00:10]} b5 {[%emt 0:04:02]} 25. R1c2 {[%emt 0:02:43]} Qa1+ {[%emt 0:03:18]} 26. Kh2 {[%emt 0:02:12]} Qe1 {[%emt 0:00:51]} 27. Qg4 {[%emt 0:00:08]} a5 {[%emt 0:04:48]} 28. d4 {[%emt 0:09:39]} Qe4 {[%emt 0:01:54]} 29. R2c3 {[%emt 0:01:26]} g5 {[%emt 0:05:01]} 30. hxg6 {[%emt 0:16:26]} fxg6 {[%emt 0:00:23]} 31. Rf3 {[%emt 0:01:43]} Qf5 {[%emt 0:02:32]} 32. Qxf5 {[%emt 0:00:47]} Rxf5 {[%emt 0:00:20]} 33. g4 {[%emt 0:02:01]} Rff8 {[%emt 0:02:49]} 34. f5 {[%emt 0:04:27]} Rc8 {[%emt 0:01:03]} 35. Rd7 {[%emt 0:00:54]} h5 {[%emt 0:05:20]} 36. f6 {[%emt 0:00:28]} Rc2+ {[%emt 0:03:00]} 37. Kg3 {[%emt 0:00:11]} Rxa2 {[%emt 0:01:35]} 38. gxh5 {[%emt 0:00:37]} gxh5 {[%emt 0:02:59]} 39. Rg7+ {[%emt 0:00:47]} Kh8 {[%emt 0:00:07]} 40. Rf5 {[%emt 0:00:02]} 1-0

[Event "Belt and Road Women 2024"]
[Site "Yuecheng Shaoxing"]
[Date "2024.08.01"]
[Round "8.11"]
[White "Zhang, Xiao"]
[Black "Yang, Yijing"]
[Result "1-0"]
[ECO "B14"]
[WhiteElo "2193"]
[BlackElo "2022"]
[Annotator "RC"]
[PlyCount "75"]
[EventDate "2024.08.01"]
[EventType "swiss"]
[EventCountry "CHN"]
[SourceTitle "playchess.com"]
[Source "ChessBase"]
[SourceQuality "1"]
[TimeControl "5400+30"]

1. d4 {[%emt 0:00:03]} Nf6 {[%emt 0:00:07]} 2. c4 {[%emt 0:00:05]} e6 {[%emt 0:00:05]} 3. Nc3 {[%emt 0:00:30]} Bb4 {[%emt 0:00:08]} 4. e3 {[%emt 0:00:09]} O-O {[%emt 0:01:13]} 5. Bd3 {[%emt 0:00:08]} d5 {[%emt 0:03:03]} 6. Nf3 {[%emt 0:00:13]} c5 {[%emt 0:04:32]} 7. cxd5 {[%emt 0:00:15]} cxd4 {[%emt 0:08:07]} 8. exd4 {[%emt 0:00:05]} exd5 {[%emt 0:02:29]} 9. O-O {[%emt 0:00:06]} Bg4 {[%emt 0:00:50]} 10. Bg5 {[%emt 0:00:07]} Be7 {[%emt 0:06:33]} 11. h3 {[%emt 0:03:22]} Bh5 {[%emt 0:01:35]} 12. g4 {[%emt 0:09:28]} Bg6 {[%emt 0:05:00]} 13. Bxg6 {[%emt 0:03:04]} fxg6 {[%emt 0:02:09]} 14. Qb3 {[%emt 0:02:06]} Nc6 {[%emt 0:07:12]} 15. Qxb7 {[%emt 0:01:58]} Rc8 {[%emt 0:10:06]} 16. Rfe1 {[%emt 0:04:47]} h6 {[%emt 0:11:02]} 17. Bh4 {[%emt 0:05:33]} Kh7 {[%emt 0:15:00]} 18. Rad1 {[%emt 0:13:25]} Rc7 {[%emt 0:02:08]} 19. Qb5 {[%emt 0:05:41]} Ne4 {[%emt 0:05:51]} 20. Bxe7 {[%emt 0:04:38]} Nxe7 {[%emt 0:00:13]} 21. Qd3 {[%emt 0:00:53]} Nxc3 {[%emt 0:04:52]} 22. bxc3 {[%emt 0:00:02]} Qc8 {[%emt 0:00:06]} 23. Re3 {[%emt 0:00:39]} Rf6 {[%emt 0:03:10]} 24. Rde1 {[%emt 0:01:37]} Qf8 {[%emt 0:00:56]} 25. Kg2 {[%emt 0:02:25]} Rf4 {[%emt 0:02:14]} 26. Re6 {[%emt 0:01:54]} Qc8 {[%emt 0:00:47]} 27. Qd2 {[%emt 0:04:30]} Re4 {[%emt 0:02:07]} 28. R6xe4 {[%emt 0:01:32]} dxe4 {[%emt 0:00:03]} 29. Rxe4 {[%emt 0:00:14]} Nd5 {[%emt 0:00:51]} 30. Re5 {[%emt 0:00:37]} Nxc3 {[%emt 0:00:53]} 31. d5 {[%emt 0:02:32]} Qd7 {[%emt 0:01:39]} 32. Qd3 {[%emt 0:02:02]} Rc5 {[%emt 0:00:41]} 33. Re6 {[%emt 0:00:45]} Kh8 {[%emt 0:00:45]} 34. Qxg6 {[%emt 0:00:26]} Rc8 {[%emt 0:00:03]} 35. Qf5 {[%emt 0:01:18]} Rd8 {[%emt 0:00:50]} 36. d6 {[%emt 0:01:12]} Nxa2 {[%emt 0:00:28]} 37. Qe5 {[%emt 0:00:13]} Kh7 {[%emt 0:00:18]} 38. Re7 {[%emt 0:00:07]} 1-0